bitfinex-derivatives/quotes_SOLF0:USTF0_20251230
["timestamp","ask_amount","ask_price","bid_price","bid_amount"]
[1767112441895,0.00127968,126.07,126.03,8.63864634]
[1767112445602,2.17855094,126.06,126.0,7.16239932]
[1767112445909,2.17855094,126.06,126.01,8.58]
[1767112446807,0.0539546,126.05,126.01,8.58]
[1767112447600,2.17855094,126.04,126.01,8.58]
[1767112447802,2.17855094,126.04,125.99,7.1508]
[1767112449904,2.17855094,126.04,125.99,15.7308]
[1767112450104,2.17855094,126.04,125.99,8.58]
[1767112450504,2.17855094,126.02,125.97,13.73487116]
[1767112450803,0.05553162,126.01,125.97,13.73487116]
[1767112451202,2.17855094,126.0,125.97,13.73487116]
[1767112451409,2.17855094,126.0,125.97,5.15487116]
[1767112451710,2.17855094,126.0,125.94,8.58]
[1767112452009,0.05983825,125.98,125.94,15.7337]
[1767112452308,0.05983825,125.98,125.94,8.58]
[1767112453209,2.17855094,126.0,125.94,8.58]
[1767112454021,2.17855094,126.0,125.94,15.7337]
[1767112454222,0.06067426,125.98,125.96,0.05244821]
[1767112454512,2.17855094,125.98,125.94,8.58]
[1767112454817,15.6713,125.99,125.91,8.58]
[1767112455023,2.17855094,125.96,125.91,8.58]
[1767112455211,2.17855094,125.97,125.91,8.58]
[1767112455407,0.00019327,125.95,125.91,8.58]
[1767112455610,0.00019327,125.95,125.91,15.7354]
[1767112455919,2.17855094,125.99,125.92,8.58]
[1767112456820,0.05323986,125.97,125.94,0.05197864]
[1767112459407,2.2317908,125.97,125.92,8.58]
[1767112459814,2.2317908,125.97,125.9,8.35]
[1767112459815,9.3841908,125.97,125.9,8.35]
[1767112460014,2.17855094,125.93,125.88,8.35]
[1767112460319,0.05910938,125.92,125.89,0.02593689]
[1767112461418,2.17855094,125.91,125.85,8.35]
[1767112461810,111.3022,125.92,125.85,8.35]
[1767112461811,2.17855094,125.89,125.85,8.35]
[1767112462215,213.8522,125.92,125.85,8.35]
[1767112462416,2.17855094,125.89,125.85,8.35]
[1767112462616,0.05322924,125.9,125.85,8.35]
[1767112462920,2.23178018,125.9,125.85,8.35]
[1767112463119,2.23178018,125.9,125.82,8.35]
[1767112463120,2.17855094,125.88,125.82,8.35]
[1767112463325,0.05105022,125.86,125.82,8.35]
[1767112465426,93.86,125.9,125.83,8.35]
[1767112465826,2.17855094,125.89,125.83,8.35]
[1767112466323,2.17855094,125.89,125.78,111.4227]
[1767112466324,2.17855094,125.85,125.78,8.35]
[1767112466529,0.05660372,125.83,125.8,0.05105022]
[1767112466833,2.23515466,125.83,125.8,0.05105022]
[1767112467932,0.05660372,125.83,125.8,0.05105022]
[1767112479736,8.71,125.88,125.8,8.40105022]
[1767112479936,111.3138,125.91,125.78,111.4232]
[1767112479937,109.8066,125.9,125.82,8.35]
[1767112480244,8.71,125.89,125.82,8.35]
[1767112480645,7.1576,125.88,125.82,8.35]
[1767112480839,0.05187712,125.86,125.84,0.05669938]
[1767112481548,0.05187712,125.86,125.8,15.5118]
[1767112481744,0.05187712,125.86,125.8,8.35]
[1767112482137,8.71,125.85,125.78,8.35]
[1767112482343,0.05130393,125.83,125.8,0.05095456]
[1767112482545,0.05130393,125.83,125.77,6.76393998]
[1767112482943,8.76130393,125.83,125.77,6.76393998]
[1767112483441,93.94,125.82,125.77,6.76393998]
[1767112483647,101.1009,125.82,125.77,6.76393998]
[1767112485551,15.8709,125.82,125.77,6.76393998]
[1767112485757,93.96,125.82,125.77,6.76393998]
[1767112486149,0.05130393,125.83,125.77,6.76393998]
[1767112486348,94.01130393,125.83,125.77,15.65393998]
[1767112487653,0.05130393,125.83,125.78,8.89]
[1767112488646,0.00130393,125.83,125.78,8.89]
[1767112489646,0.00130393,125.83,125.79,0.05]
[1767112490545,96.14785197,125.82,125.77,6.76393998]
[1767112490955,7.1616,125.81,125.77,6.76393998]
[1767112491556,0.05643243,125.8,125.77,6.76393998]
[1767112492759,94.01643243,125.8,125.77,6.76393998]
[1767112493158,0.05643243,125.8,125.77,6.76393998]
[1767112497064,94.03643243,125.8,125.77,6.76393998]
[1767112498863,0.05643243,125.8,125.77,6.76393998]
[1767112499061,93.98,125.81,125.77,15.65393998]
[1767112499261,93.98,125.81,125.77,6.76393998]
[1767112499566,8.84,125.83,125.77,6.76393998]
[1767112499867,93.98,125.82,125.77,6.76393998]
[1767112500066,0.05090522,125.81,125.78,0.05643243]
[1767112501059,94.03090522,125.81,125.78,0.05643243]
[1767112501260,0.05090522,125.81,125.78,0.05643243]
[1767112501460,93.98,125.86,125.78,8.94643243]
[1767112501659,93.98,125.86,125.78,8.89]
[1767112502061,8.84,125.87,125.78,8.89]
[1767112502375,93.98,125.86,125.78,8.89]
[1767112502554,0.0008543,125.84,125.81,9.08656897]
[1767112502754,0.0008543,125.84,125.81,9.03]
[1767112503155,0.0008543,125.84,125.81,16.191]
[1767112503360,93.98,125.91,125.83,9.03]
[1767112503954,8.44,125.92,125.84,9.03]
[1767112504159,8.44,125.92,125.85,9.03]
[1767112504362,0.05520831,125.9,125.88,9.03]
[1767112504666,8.44,125.95,125.88,9.03]
[1767112505167,102.42,125.95,125.88,9.03]
[1767112505563,0.05432483,125.93,125.9,0.05303057]
[1767112505870,0.00432483,125.93,125.9,0.05303057]
[1767112510167,0.00432483,125.93,125.9,9.08303057]
[1767112511474,8.44,125.95,125.9,0.05303057]
[1767112511774,8.44,125.93,125.84,9.03]
[1767112511967,15.5949,125.93,125.84,9.03]
[1767112512467,8.44,125.93,125.86,9.03]
[1767112512871,0.05786611,125.91,125.88,0.0604756]
[1767112514773,93.92,125.96,125.88,9.0904756]
[1767112514977,93.92,125.96,125.88,9.03]
[1767112515674,0.05680981,125.93,125.91,0.05655578]
[1767112518366,0.05680981,125.93,125.86,9.27]
[1767112518572,8.55,125.93,125.86,9.27]
[1767112519468,0.05230254,125.91,125.88,0.05569887]
[1767112519772,0.05230254,125.91,125.83,110.3699]
[1767112519972,8.55,125.92,125.83,110.3699]
[1767112520180,15.7052,125.92,125.84,9.27]
[1767112520873,0.0567948,125.89,125.87,0.05546318]
[1767112521068,7.1543,125.94,125.87,0.05546318]
[1767112521273,93.92,125.94,125.86,9.27]
[1767112522072,8.55,125.95,125.88,9.27]
[1767112522276,109.6232,125.96,125.89,9.32142703]
[1767112523277,0.05460366,125.94,125.89,9.32142703]
[1767112524986,8.60460366,125.94,125.89,0.05142703]
[1767112526580,8.55,125.92,125.84,16.4294]
[1767112527388,0.05445715,125.89,125.87,0.05650752]
[1767112528582,0.05445715,125.89,125.83,93.92]
[1767112528882,0.05445715,125.89,125.82,9.27]
[1767112529184,15.7057,125.91,125.82,9.27]
[1767112529580,0.05673661,125.88,125.85,0.0536136]
[1767112534183,0.05673661,125.88,125.81,111.3961]
[1767112534184,8.60673661,125.88,125.81,7.161]
[1767112534388,8.60673661,125.88,125.8,9.27]
[1767112534581,8.55,125.87,125.8,9.27]
[1767112535391,0.06099691,125.85,125.82,0.05552654]
[1767112536892,0.06099691,125.85,125.77,6.76393998]
[1767112536893,8.55,125.83,125.77,6.76393998]
[1767112537280,8.55,125.82,125.77,6.76393998]
[1767112537590,102.47,125.82,125.77,6.76393998]
[1767112537784,8.55,125.82,125.77,6.76393998]
[1767112537979,0.05012876,125.81,125.78,0.05305153]
[1767112540395,111.3663,125.85,125.78,9.32305153]
[1767112540396,102.49,125.85,125.78,9.32305153]
[1767112540689,8.55,125.84,125.78,0.05305153]
[1767112540894,15.7104,125.83,125.78,0.05305153]
[1767112541303,0.05286557,125.82,125.78,0.05305153]
[1767112541592,109.6515,125.81,125.78,0.00305153]
[1767112542001,8.55,125.79,125.72,1.3836703]
[1767112542297,8.55,125.79,125.7,9.27]
[1767112542494,8.55,125.79,125.66,111.5265]
[1767112542495,8.55,125.77,125.69,1.3841381]
[1767112542698,8.55,125.75,125.67,9.27]
[1767112542898,102.49,125.74,125.67,9.27]
[1767112543100,0.05343747,125.72,125.69,0.05012876]
[1767112543403,102.51,125.75,125.69,0.05012876]
[1767112543700,8.55,125.73,125.64,9.27]
[1767112543903,102.51,125.73,125.64,9.27]
[1767112544212,0.05820659,125.7,125.67,0.05904719]
[1767112544391,9.51788436,125.76,125.67,0.05904719]
[1767112544594,93.96,125.75,125.67,9.27]
[1767112544897,102.51,125.75,125.67,9.27]
[1767112545089,15.715,125.75,125.67,9.27]
[1767112545405,102.51,125.74,125.67,9.27]
[1767112545595,0.05780397,125.72,125.67,9.27]
[1767112546605,0.05780397,125.72,125.68,0.06030718]
[1767112546810,0.05478257,125.71,125.64,8.78]
[1767112548004,0.05478257,125.71,125.66,0.0506137]
[1767112549699,8.98,125.7,125.66,0.0006137]
[1767112549908,94.0,125.69,125.66,0.0006137]
[1767112550600,16.1478,125.7,125.66,0.0006137]
[1767112550799,94.0,125.69,125.66,0.0006137]
[1767112550996,0.05478257,125.71,125.66,0.0006137]
[1767112551200,94.0,125.7,125.66,0.0006137]
[1767112552399,110.22208257,125.71,125.66,0.0006137]
[1767112552707,94.02,125.7,125.66,0.0006137]
[1767112554504,0.05478257,125.71,125.66,0.0006137]
[1767112554702,94.02,125.7,125.66,0.0006137]
[1767112555306,94.04,125.69,125.66,0.0006137]
[1767112555810,94.04,125.7,125.66,0.0006137]
[1767112556209,8.98,125.7,125.66,0.0006137]
[1767112556414,94.04,125.69,125.66,0.0006137]
[1767112556616,8.98,125.7,125.66,0.0006137]
[1767112556814,94.04,125.69,125.66,0.0006137]
[1767112557705,94.04,125.7,125.66,0.0006137]
[1767112558106,0.05478257,125.71,125.66,0.0006137]
[1767112558303,94.09478257,125.71,125.66,0.0006137]
[1767112558713,0.05478257,125.71,125.66,0.0006137]
[1767112558908,94.09478257,125.71,125.66,0.0006137]
[1767112560708,8.85,125.7,125.66,0.0006137]
[1767112560915,8.85,125.69,125.6,9.4]
[1767112561113,7.1689,125.68,125.6,16.5732]
[1767112561413,94.04,125.67,125.61,9.4]
[1767112561913,0.05634009,125.65,125.61,9.4]
[1767112562804,8.85,125.72,125.63,3.42339957]
[1767112563115,94.06,125.71,125.64,9.4]
[1767112563317,8.85,125.72,125.64,9.4]
[1767112563813,0.05885769,125.69,125.67,0.05634009]
[1767112564513,102.91,125.72,125.67,0.05634009]
[1767112564906,7.1658,125.74,125.67,0.05634009]
[1767112565209,7.1658,125.74,125.67,9.4]
[1767112565210,94.06,125.74,125.67,9.4]
[1767112565610,0.05751868,125.72,125.69,0.05927049]
[1767112567010,111.4307,125.78,125.69,0.05927049]
[1767112567011,120.2807,125.78,125.69,9.45927049]
[1767112567208,94.06,125.77,125.69,9.4]
[1767112567409,102.91,125.77,125.69,9.4]
[1767112568319,0.0590542,125.74,125.72,0.05342889]
[1767112569624,0.0590542,125.74,125.72,0.00342889]
[1767112571123,0.0590542,125.74,125.66,94.06]
[1767112571124,8.9090542,125.74,125.66,94.06]
[1767112571313,8.9090542,125.74,125.65,16.57]
[1767112571314,8.85,125.73,125.65,9.4]
[1767112571626,94.06,125.72,125.65,9.4]
[1767112571830,7.1671,125.71,125.65,9.4]
[1767112572126,7.1671,125.71,125.62,9.4]
[1767112572127,8.85,125.69,125.62,9.4]
[1767112572421,8.85,125.69,125.59,10.78521246]
[1767112572422,8.85,125.68,125.59,10.78521246]
[1767112572612,8.85,125.68,125.59,9.4]
[1767112573015,117.36464581,125.7,125.59,9.4]
[1767112573016,8.85,125.67,125.59,9.4]
[1767112573224,0.00268015,125.64,125.62,0.05213118]
[1767112573431,0.00268015,125.64,125.59,9.4]
[1767112573432,102.89,125.69,125.59,9.4]
[1767112574012,8.85,125.67,125.6,16.573]
[1767112574216,0.0543343,125.65,125.62,0.0531017]
[1767112575331,94.06,125.68,125.62,0.0531017]
[1767112575721,8.85,125.69,125.62,0.0531017]
[1767112576315,9.01,125.68,125.62,0.0531017]
[1767112576529,0.05829876,125.67,125.62,0.0531017]
[1767112578535,0.05829876,125.67,125.62,7.2252017]
[1767112579433,0.05829876,125.67,125.62,0.0531017]
[1767112580227,0.05829876,125.67,125.62,7.2252017]
[1767112580824,0.05829876,125.67,125.63,16.2415]
[1767112581330,7.1672,125.71,125.63,16.2415]
[1767112581331,16.1772,125.71,125.63,16.2415]
[1767112581537,110.2572,125.71,125.63,16.2415]
[1767112582232,16.1772,125.71,125.63,16.2415]
[1767112582537,16.1772,125.71,125.66,0.05660551]
[1767112582538,0.05402431,125.68,125.66,0.05660551]
[1767112583029,7.1661,125.73,125.66,0.05660551]
[1767112583237,16.1761,125.73,125.65,16.2402]
[1767112583829,9.01,125.71,125.63,14.39186662]
[1767112584029,0.05122539,125.68,125.66,0.0555152]
[1767112585936,0.05122539,125.68,125.63,9.07]
[1767112586131,0.05122539,125.68,125.63,23.46216662]
[1767112586737,0.05122539,125.68,125.63,16.29066662]
[1767112586933,0.05122539,125.68,125.64,0.05887635]
[1767112587331,2.24308157,125.68,125.64,0.05887635]
[1767112588537,0.05122539,125.68,125.64,0.05887635]
[1767112590139,9.06122539,125.68,125.62,7.22066662]
[1767112590339,11.20185618,125.67,125.61,7.22066662]
[1767112590640,11.20185618,125.67,125.6,9.07]
[1767112591144,2.19185618,125.66,125.6,9.07]
[1767112591339,0.0579479,125.64,125.62,0.05216943]
[1767112591941,11.20185618,125.69,125.62,9.12216943]
[1767112592335,7.1689,125.68,125.62,9.12216943]
[1767112592736,11.20185618,125.69,125.62,11.31402561]
[1767112592941,0.05221255,125.67,125.62,9.12216943]
[1767112593145,0.05221255,125.67,125.63,11.31349639]
[1767112593346,105.28185618,125.71,125.63,11.31349639]
[1767112593546,7.1678,125.7,125.63,16.2415]
[1767112594140,11.20185618,125.71,125.63,9.07]
[1767112594446,0.05193063,125.68,125.66,0.05615365]
[1767112602449,111.4731,125.73,125.66,9.12615365]
[1767112602450,18.36825618,125.73,125.66,9.12615365]
[1767112602647,2.19185618,125.75,125.67,11.26185618]
[1767112602850,11.20185618,125.75,125.67,18.4825228]
[1767112603359,0.00230263,125.72,125.7,0.05607748]
[1767112604360,9.01,125.76,125.7,0.05607748]
[1767112605463,0.05054015,125.74,125.7,0.05607748]
[1767112608362,0.05054015,125.74,125.7,9.54607748]
[1767112610259,0.05054015,125.74,125.7,0.05607748]
[1767112610566,9.43054015,125.74,125.7,0.05607748]
[1767112612058,0.05054015,125.74,125.7,0.05607748]
[1767112613565,0.05054015,125.74,125.7,7.22357748]
[1767112613965,0.05054015,125.74,125.7,0.05607748]
[1767112616664,9.43054015,125.74,125.7,0.05607748]
[1767112618471,0.05054015,125.74,125.7,0.05607748]
[1767112620268,0.05054015,125.74,125.7,7.22367748]
[1767112620667,9.15,125.77,125.7,9.85607748]
[1767112621173,9.15,125.79,125.72,9.8]
[1767112621769,0.06114088,125.77,125.74,0.05643361]
[1767112622275,9.15,125.82,125.74,9.85643361]
[1767112622572,9.15,125.82,125.74,9.8]
[1767112623075,0.05542928,125.79,125.77,0.05928452]
[1767112623380,9.15,125.85,125.77,9.85928452]
[1767112623665,9.15,125.85,125.77,9.8]
[1767112623866,9.15,125.85,125.78,7.1629]
[1767112624061,9.15,125.85,125.77,9.8]
[1767112624464,0.06071928,125.82,125.8,0.0611241]
[1767112625273,11.33636462,125.84,125.8,0.0611241]
[1767112625475,11.33636462,125.83,125.74,123.44386462]
[1767112625775,2.18636462,125.82,125.74,11.98636462]
[1767112626165,9.15,125.83,125.74,11.98636462]
[1767112626366,2.18636462,125.82,125.74,11.98636462]
[1767112626567,2.18636462,125.82,125.76,7.164]
[1767112626767,0.05607452,125.8,125.78,0.05108354]
[1767112627175,9.15,125.83,125.78,0.05108354]
[1767112628176,0.05520576,125.82,125.78,2.23744816]
[1767112628569,0.05520576,125.82,125.78,0.05108354]
[1767112630777,0.05520576,125.82,125.78,7.21388354]
[1767112631179,9.15,125.85,125.78,9.85108354]
[1767112631473,9.15,125.85,125.79,7.1624]
[1767112632268,0.0531757,125.83,125.81,0.05366627]
[1767112632467,9.15,125.85,125.81,0.05366627]
[1767112633579,0.05694467,125.84,125.81,0.05366627]
[1767112637479,10.22694467,125.84,125.77,7.1631]
[1767112638283,10.17,125.83,125.76,9.38]
[1767112638683,17.38664218,125.81,125.78,0.00024547]
[1767112638883,10.17,125.8,125.73,9.38]
[1767112639078,13.58636388,125.8,125.73,9.38]
[1767112639785,0.05975156,125.78,125.75,0.05209383]
[1767112647783,3.41636388,125.82,125.75,9.43209383]
[1767112647985,10.17,125.83,125.75,9.43209383]
[1767112648185,10.17,125.83,125.75,9.38]
[1767112648794,0.05808238,125.8,125.78,0.05512357]
[1767112649587,10.17,125.83,125.78,0.05512357]
[1767112650393,10.17,125.82,125.75,16.5442]
[1767112650899,10.17,125.81,125.75,16.5442]
[1767112651502,0.05150134,125.79,125.77,0.06019018]
[1767112653403,104.57626388,125.84,125.77,7.22369018]
[1767112653404,20.74626388,125.84,125.77,7.22369018]
[1767112653591,10.17,125.83,125.77,7.22369018]
[1767112654298,10.17,125.85,125.78,9.38]
[1767112654897,10.17,125.83,125.76,9.38]
[1767112655102,13.58636388,125.82,125.74,9.38]
[1767112655399,10.17,125.81,125.77,0.00017022]
[1767112655603,13.58636388,125.8,125.77,0.00017022]
[1767112655894,13.58636388,125.8,125.72,103.71592]
[1767112656101,13.58636388,125.8,125.72,9.71592]
[1767112656501,10.17,125.8,125.73,9.38]
[1767112656802,0.05261851,125.78,125.75,0.05410186]
[1767112659904,10.17,125.82,125.75,9.43410186]
[1767112661506,7.16,125.84,125.75,9.43410186]
[1767112661507,10.17,125.84,125.77,9.38]
[1767112661708,10.17,125.84,125.79,0.05387361]
[1767112662701,10.17,125.84,125.79,7.21617361]
[1767112665911,10.17,125.87,125.8,7.1617]
[1767112666209,10.17,125.87,125.82,0.05782368]
[1767112670503,93.98,125.89,125.82,7.21842368]
[1767112670707,103.95,125.89,125.82,16.99842368]
[1767112672411,9.97,125.89,125.82,16.99842368]
[1767112672608,9.97,125.89,125.83,7.1601]
[1767112672801,9.97,125.89,125.85,0.0510169]
[1767112673520,17.127,125.89,125.85,0.0010169]
[1767112673710,9.97,125.88,125.85,0.0010169]
[1767112674422,9.97,125.87,125.79,16.9421]
[1767112674622,9.97,125.87,125.79,9.78]
[1767112675411,0.05279387,125.84,125.82,0.05968599]
[1767112675720,0.05279387,125.84,125.78,9.78]
[1767112676611,0.05279387,125.84,125.79,7.1622]
[1767112676911,0.05279387,125.84,125.8,0.05515407]
[1767112683629,9.64279387,125.84,125.8,0.05515407]
[1767112693634,2.18654115,125.83,125.8,0.05515407]
[1767112693825,0.05279387,125.84,125.78,9.7]
[1767112694026,11.77654115,125.85,125.78,9.7]
[1767112694742,0.05856538,125.83,125.8,0.05299431]
[1767112702136,9.38,125.9,125.82,9.29]
[1767112702338,9.38,125.9,125.83,11.47654115]
[1767112703245,0.05275719,125.88,125.85,0.05168369]
[1767112704145,11.61929834,125.88,125.85,0.00168369]
[1767112704349,9.43275719,125.88,125.85,0.00168369]
[1767112705635,11.61929834,125.88,125.85,0.00168369]
[1767112707749,9.43275719,125.88,125.85,0.00168369]
[1767112710647,11.56654115,125.86,125.79,9.29]
[1767112711440,16.5391,125.85,125.79,9.29]
[1767112711749,0.05420939,125.83,125.81,0.05701758]
[1767112713743,0.05420939,125.83,125.78,2.18654115]
[1767112714142,0.05420939,125.83,125.76,25.97668464]
[1767112714448,9.43420939,125.83,125.76,25.97668464]
[1767112714846,9.43420939,125.83,125.78,0.0577588]
[1767112715844,9.43420939,125.83,125.78,2.24429995]
[1767112716243,0.05420939,125.83,125.78,9.3477588]
[1767112718350,0.05420939,125.83,125.78,0.0577588]
[1767112718351,9.43420939,125.83,125.78,0.0577588]
[1767112718552,9.43420939,125.83,125.76,9.52298464]
[1767112718553,9.38,125.8,125.74,7.33644349]
[1767112718746,9.38,125.8,125.73,18.81298464]
[1767112719251,9.38,125.8,125.73,11.47654115]
[1767112719639,0.05864176,125.78,125.75,0.05499326]
[1767112721952,9.43864176,125.78,125.75,0.00499326]
[1767112722952,11.62518291,125.78,125.75,0.00499326]
[1767112723652,9.38,125.77,125.75,0.00499326]
[1767112723852,9.38,125.77,125.72,0.33592]
[1767112724053,16.544,125.77,125.72,0.33592]
[1767112724255,11.56654115,125.76,125.72,0.33592]
[1767112724756,9.44052574,125.75,125.73,0.05628167]
[1767112724954,9.44052574,125.75,125.69,9.29]
[1767112725750,9.44052574,125.75,125.67,16.62644349]
[1767112725950,0.05608965,125.72,125.7,0.05643141]
[1767112726251,9.38,125.75,125.7,0.05643141]
[1767112727159,101.1439,125.77,125.7,0.05643141]
[1767112727160,0.05177104,125.74,125.7,0.05643141]
[1767112727462,111.3861,125.83,125.73,12.21654115]
[1767112727463,9.96,125.79,125.73,12.21654115]
[1767112727650,9.96,125.81,125.73,12.21654115]
[1767112728254,0.05937272,125.78,125.76,0.05969473]
[1767112728456,10.01937272,125.78,125.7,10.03]
[1767112728656,9.96,125.78,125.71,2.18654115]
[1767112728954,9.96,125.78,125.71,12.21654115]
[1767112729556,0.05978475,125.76,125.73,0.0535328]
[1767112730765,9.96,125.8,125.73,12.27007395]
[1767112731962,0.05895684,125.78,125.73,12.27007395]
[1767112732359,17.1205,125.83,125.75,12.21654115]
[1767112732563,17.1205,125.83,125.76,2.18654115]
[1767112733476,0.05783065,125.81,125.78,0.05091563]
[1767112739768,9.95,125.85,125.78,9.49091563]
[1767112740573,9.95,125.85,125.78,16.65381563]
[1767112740871,0.05594541,125.83,125.78,16.65381563]
[1767112741267,10.00594541,125.83,125.78,0.00091563]
[1767112742670,17.1109,125.82,125.78,0.00091563]
[1767112745381,9.95,125.82,125.78,0.00091563]
[1767112747582,9.95,125.81,125.78,0.00091563]
[1767112749985,9.95,125.8,125.78,0.00091563]
[1767112750186,10.00396212,125.8,125.78,0.00091563]
[1767112750589,10.00396212,125.8,125.71,7.1665]
[1767112750590,9.95,125.79,125.71,7.1665]
[1767112750784,9.95,125.78,125.71,7.1665]
[1767112751490,0.05250432,125.76,125.73,0.05316648]
[1767112754995,0.05250432,125.76,125.73,7.21896648]
[1767112756385,9.95,125.78,125.73,7.21896648]
[1767112757497,0.05280586,125.77,125.73,7.21896648]
[1767112758388,0.05280586,125.77,125.73,16.59896648]
[1767112759190,0.00280586,125.77,125.74,9.38]
[1767112763590,0.00280586,125.77,125.73,7.21896648]
[1767112763799,0.00280586,125.77,125.73,16.59896648]
[1767112766097,0.00280586,125.77,125.73,7.21896648]
[1767112766292,0.00280586,125.77,125.73,0.05316648]
[1767112768501,9.89280586,125.77,125.73,0.05316648]
[1767112769897,9.89,125.76,125.68,23.88494349]
[1767112770099,9.89,125.75,125.69,9.38]
[1767112770299,97.41976797,125.79,125.7,9.38]
[1767112770300,9.89,125.78,125.7,9.38]
[1767112770494,9.89,125.78,125.71,9.38]
[1767112771106,0.05855631,125.76,125.73,0.05230161]
[1767112772209,0.05855631,125.76,125.73,9.43230161]
[1767112772806,0.05855631,125.76,125.73,0.05230161]
[1767112775109,9.89,125.79,125.73,16.59810161]
[1767112776304,0.0595874,125.77,125.73,16.59810161]
[1767112776709,9.9495874,125.77,125.7,7.33644349]
[1767112776909,9.9495874,125.77,125.7,9.38]
[1767112776910,9.89,125.76,125.7,9.38]
[1767112777710,0.0581768,125.74,125.72,0.05256072]
[1767112780114,9.89,125.78,125.72,0.05256072]
[1767112780316,9.89,125.78,125.72,9.43256072]
[1767112781010,0.05593794,125.76,125.72,9.43256072]
[1767112783216,9.94593794,125.76,125.72,0.05256072]
[1767112783722,0.05593794,125.76,125.72,9.43256072]
[1767112785418,0.05593794,125.76,125.73,7.1658]
[1767112785615,9.89,125.8,125.73,16.5458]
[1767112785815,9.89,125.79,125.71,16.71644349]
[1767112786426,9.89,125.79,125.72,9.67]
[1767112786620,0.05218712,125.77,125.74,0.06035649]
[1767112786818,9.43,125.82,125.74,9.73035649]
[1767112787019,9.43,125.82,125.74,9.67]
[1767112787814,9.43,125.82,125.77,0.05723259]
[1767112788423,12.84976797,125.82,125.77,0.05723259]
[1767112788615,20.01096797,125.82,125.77,0.05723259]
[1767112789016,9.43,125.81,125.74,9.67]
[1767112790125,0.05729865,125.79,125.76,0.06120847]
[1767112791031,16.64989865,125.79,125.76,0.00120847]
[1767112792226,9.48729865,125.79,125.76,0.00120847]
[1767112793525,0.05729865,125.79,125.76,0.00120847]
[1767112800832,16.9501,125.84,125.77,9.77]
[1767112801027,9.79,125.84,125.77,17.10644349]
[1767112801221,9.79,125.84,125.78,7.1629]
[1767112801420,9.79,125.84,125.78,9.77]
[1767112801929,9.79,125.84,125.8,0.06090228]
[1767112802326,9.79,125.84,125.8,0.00090228]
[1767112802529,16.9503,125.83,125.8,0.00090228]
[1767112802721,9.79,125.82,125.8,0.00090228]
[1767112803126,16.951,125.82,125.76,9.77]
[1767112803531,9.79,125.82,125.76,9.77]
[1767112804132,0.05041191,125.8,125.78,0.05108255]
[1767112805031,0.05041191,125.8,125.78,0.00108255]
[1767112806636,9.79,125.84,125.78,0.00108255]
[1767112806939,7.1589,125.86,125.78,9.77108255]
[1767112806940,16.9489,125.86,125.78,9.77108255]
[1767112807232,16.9489,125.86,125.78,9.77]
[1767112807637,0.05051874,125.83,125.81,0.05023681]
[1767112808032,16.9489,125.86,125.81,0.05023681]
[1767112808434,9.79,125.85,125.81,0.05023681]
[1767112812139,11.97628379,125.85,125.81,0.05023681]
[1767112812333,19.13538379,125.85,125.81,0.05023681]
[1767112812534,11.97628379,125.82,125.75,9.77]
[1767112813444,0.05207393,125.8,125.77,0.05097828]
[1767112815541,9.84207393,125.8,125.77,0.00097828]
[1767112815736,9.84207393,125.8,125.71,11.95628379]
[1767112815737,2.18628379,125.78,125.71,11.95628379]
[1767112815937,11.97628379,125.78,125.71,9.77]
[1767112816142,11.97628379,125.78,125.7,2.18628379]
[1767112816143,9.75,125.8,125.72,19.49238379]
[1767112816443,9.75,125.8,125.73,12.32628379]
[1767112816833,9.75,125.8,125.75,0.05107599]
[1767112817041,0.05510359,125.78,125.75,0.05107599]
[1767112818735,0.05510359,125.78,125.58,118.47131522]
[1767112818736,9.75,125.7,125.58,118.47131522]
[1767112818943,9.75,125.68,125.58,118.47131522]
[1767112819244,9.75,125.67,125.58,6.87501522]
[1767112819750,111.5166,125.68,125.58,6.87501522]
[1767112819751,0.05969724,125.64,125.61,0.05257206]
[1767112821236,0.05969724,125.64,125.61,0.00257206]
[1767112821440,103.80969724,125.64,125.61,0.00257206]